[Event "Titled Tuesday Blitz April 12 Early 2022"]
[White "Janaszak, Dawid"]
[Black "Bintang, Rasyid A. Hidayat"]
[WhiteFideId "1119206"]
[BlackFideId "7105355"]
[WhiteElo "2199"]
[BlackElo "2417"]
[Result "1-0"]
[Round "11"]
[TimeControl "180+1"]
[Date "2022.04.13"]
[WhiteClock "0:00:35"]
[BlackClock "0:00:04"]

1. d4 {[%clk 0:02:52]}  d5 {[%clk 0:02:59]} 2. Bf4 {[%clk 0:02:49]}  c5 {[%clk 0:02:58]} 3. e4 {[%clk 0:02:48]}  dxe4 {[%clk 0:02:55]} 4. d5 {[%clk 0:02:48]}  Nf6 {[%clk 0:02:54]} 5. Nc3 {[%clk 0:02:47]}  a6 {[%clk 0:02:52]} 6. Qe2 {[%clk 0:02:47]}  b5 {[%clk 0:02:36]} 7. O-O-O {[%clk 0:02:46]}  Bb7 {[%clk 0:02:35]} 8. Nxe4 {[%clk 0:02:39]}  Nxe4 {[%clk 0:02:32]} 9. Qxe4 {[%clk 0:02:39]}  Nd7 {[%clk 0:02:23]} 10. Qe1 {[%clk 0:02:26]}  g6 {[%clk 0:02:19]} 11. Qc3 {[%clk 0:02:21]}  Rg8 {[%clk 0:01:58]} 12. Nf3 {[%clk 0:02:21]}  Bg7 {[%clk 0:01:58]} 13. Qe1 {[%clk 0:02:16]}  Nf6 {[%clk 0:01:43]} 14. d6 {[%clk 0:02:08]}  Nd5 {[%clk 0:01:26]} 15. dxe7 {[%clk 0:01:55]}  Qxe7 {[%clk 0:01:15]} 16. Qd2 {[%clk 0:01:44]}  O-O-O {[%clk 0:00:55]} 17. Re1 {[%clk 0:01:38]}  Qf6 {[%clk 0:00:49]} 18. Be5 {[%clk 0:01:37]}  Qf5 {[%clk 0:00:34]} 19. Bxg7 {[%clk 0:01:37]}  Rxg7 {[%clk 0:00:31]} 20. Bd3 {[%clk 0:01:37]}  Qf4 {[%clk 0:00:25]} 21. Be4 {[%clk 0:01:12]}  Qxd2+ {[%clk 0:00:22]} 22. Nxd2 {[%clk 0:01:13]}  f5 {[%clk 0:00:20]} 23. Bf3 {[%clk 0:01:14]}  Rgd7 {[%clk 0:00:18]} 24. Re5 {[%clk 0:01:14]}  Nb4 {[%clk 0:00:16]} 25. Rxc5+ {[%clk 0:01:13]}  Kb8 {[%clk 0:00:16]} 26. Bxb7 {[%clk 0:01:01]}  Kxb7 {[%clk 0:00:16]} 27. Nb3 {[%clk 0:00:55]}  Nxa2+ {[%clk 0:00:16]} 28. Kb1 {[%clk 0:00:56]}  Nb4 {[%clk 0:00:17]} 29. Re5 {[%clk 0:00:49]}  Rd1+ {[%clk 0:00:14]} 30. Rxd1 {[%clk 0:00:49]}  Rxd1+ {[%clk 0:00:15]} 31. Nc1 {[%clk 0:00:50]}  Rd7 {[%clk 0:00:12]} 32. b3 {[%clk 0:00:47]}  Nc6 {[%clk 0:00:10]} 33. Re2 {[%clk 0:00:46]}  Nd4 {[%clk 0:00:10]} 34. Rd2 {[%clk 0:00:46]}  Kc7 {[%clk 0:00:10]} 35. Nd3 {[%clk 0:00:47]}  Ne6 {[%clk 0:00:07]} 36. Kc1 {[%clk 0:00:44]}  Ng5 {[%clk 0:00:07]} 37. f3 {[%clk 0:00:44]}  Ne6 {[%clk 0:00:07]} 38. Re2 {[%clk 0:00:41]}  Nd4 {[%clk 0:00:07]} 39. Re3 {[%clk 0:00:42]}  Nc6 {[%clk 0:00:07]} 40. Nc5 {[%clk 0:00:41]}  Rd5 {[%clk 0:00:05]} 41. Ne6+ {[%clk 0:00:38]}  Kd6 {[%clk 0:00:05]} 42. Nf8 {[%clk 0:00:39]}  Re5 {[%clk 0:00:05]} 43. Rd3+ {[%clk 0:00:37]}  Ke7 {[%clk 0:00:04]} 44. Nxh7 {[%clk 0:00:37]}  Nb4 {[%clk 0:00:04]} 45. Rd2 {[%clk 0:00:36]}  Re1+ {[%clk 0:00:04]} 46. Kb2 {[%clk 0:00:36]}  Rh1 {[%clk 0:00:04]} 47. h3 {[%clk 0:00:37]}  Nc6 {[%clk 0:00:04]} 48. Ng5 {[%clk 0:00:36]}  Ne5 {[%clk 0:00:03]} 49. f4 {[%clk 0:00:35]}  Kf6 {[%clk 0:00:04]} 50. Rd6+ {[%clk 0:00:34]}  Ke7 {[%clk 0:00:04]} 51. fxe5 {[%clk 0:00:35]} 1-0


[Site "https://www.chess.com"]

[Event "Titled Tuesday Blitz April 12 Early 2022"]
[White "Jaskolka, Tomasz"]
[Black "Agasarov, Benik"]
[WhiteFideId "1170791"]
[BlackFideId "13314823"]
[WhiteElo "2073"]
[BlackElo "2511"]
[Result "1-0"]
[Round "11"]
[TimeControl "180+1"]
[Date "2022.04.13"]
[WhiteClock "0:00:46"]
[BlackClock "0:01:39"]

1. d4 {[%clk 0:03:00]}  Nf6 {[%clk 0:03:00]} 2. Bf4 {[%clk 0:03:00]}  c5 {[%clk 0:02:59]} 3. e3 {[%clk 0:02:59]}  e6 {[%clk 0:02:59]} 4. c3 {[%clk 0:02:59]}  d5 {[%clk 0:03:00]} 5. Nd2 {[%clk 0:03:00]}  Bd6 {[%clk 0:03:00]} 6. Bg3 {[%clk 0:03:00]}  Qc7 {[%clk 0:03:00]} 7. Ngf3 {[%clk 0:03:00]}  Nbd7 {[%clk 0:03:00]} 8. Bd3 {[%clk 0:03:00]}  b6 {[%clk 0:03:00]} 9. Qa4 {[%clk 0:02:56]}  O-O {[%clk 0:02:56]} 10. O-O-O {[%clk 0:02:55]}  Bb7 {[%clk 0:02:55]} 11. Kb1 {[%clk 0:02:56]}  a6 {[%clk 0:02:53]} 12. Bc2 {[%clk 0:02:49]}  b5 {[%clk 0:02:51]} 13. Bxd6 {[%clk 0:02:49]}  Qxd6 {[%clk 0:02:50]} 14. dxc5 {[%clk 0:02:49]}  Qxc5 {[%clk 0:02:48]} 15. Qh4 {[%clk 0:02:48]}  h6 {[%clk 0:02:47]} 16. g4 {[%clk 0:02:46]}  b4 {[%clk 0:02:27]} 17. g5 {[%clk 0:02:31]}  hxg5 {[%clk 0:02:19]} 18. Nxg5 {[%clk 0:02:29]}  g6 {[%clk 0:02:20]} 19. cxb4 {[%clk 0:02:22]}  Qc7 {[%clk 0:02:19]} 20. Rhg1 {[%clk 0:01:53]}  Rac8 {[%clk 0:02:13]} 21. Rc1 {[%clk 0:01:37]}  Ne5 {[%clk 0:02:08]} 22. f4 {[%clk 0:01:17]}  Nc4 {[%clk 0:02:04]} 23. Nxc4 {[%clk 0:01:17]}  dxc4 {[%clk 0:02:01]} 24. Nxe6 {[%clk 0:01:13]}  Qe7 {[%clk 0:01:52]} 25. Nxf8 {[%clk 0:00:56]}  Rxf8 {[%clk 0:01:53]} 26. f5 {[%clk 0:00:53]}  Be4 {[%clk 0:01:52]} 27. fxg6 {[%clk 0:00:52]}  Bxc2+ {[%clk 0:01:52]} 28. Rxc2 {[%clk 0:00:51]}  Qe4 {[%clk 0:01:39]} 29. Qxf6 {[%clk 0:00:46]} 1-0


[Site "https://www.chess.com"]

[Event "Titled Tuesday Blitz April 12 Early 2022"]
[White "Kamsky, Gata"]
[Black "Kucuksari, Kaan"]
[WhiteFideId "2000024"]
[BlackFideId "6380166"]
[WhiteElo "2645"]
[BlackElo "2305"]
[Result "1-0"]
[Round "11"]
[TimeControl "180+1"]
[Date "2022.04.12"]
[WhiteClock "0:00:16"]
[BlackClock "0:00:04"]

1. e4 {[%clk 0:03:00]}  c5 {[%clk 0:02:58]} 2. Nf3 {[%clk 0:02:57]}  Nc6 {[%clk 0:02:57]} 3. d4 {[%clk 0:02:53]}  cxd4 {[%clk 0:02:58]} 4. Nxd4 {[%clk 0:02:53]}  Nf6 {[%clk 0:02:59]} 5. Nc3 {[%clk 0:02:53]}  e5 {[%clk 0:02:58]} 6. Ndb5 {[%clk 0:02:50]}  d6 {[%clk 0:02:57]} 7. Bg5 {[%clk 0:02:39]}  a6 {[%clk 0:02:56]} 8. Na3 {[%clk 0:02:39]}  b5 {[%clk 0:02:56]} 9. Nd5 {[%clk 0:02:39]}  Be7 {[%clk 0:02:57]} 10. Bxf6 {[%clk 0:02:39]}  Bxf6 {[%clk 0:02:56]} 11. c4 {[%clk 0:02:40]}  b4 {[%clk 0:02:43]} 12. Nc2 {[%clk 0:02:39]}  a5 {[%clk 0:02:41]} 13. g3 {[%clk 0:02:38]}  Bg5 {[%clk 0:02:41]} 14. Bg2 {[%clk 0:02:33]}  O-O {[%clk 0:02:40]} 15. O-O {[%clk 0:02:33]}  Be6 {[%clk 0:02:11]} 16. b3 {[%clk 0:02:32]}  Kh8 {[%clk 0:02:09]} 17. Qd3 {[%clk 0:02:28]}  f5 {[%clk 0:02:07]} 18. exf5 {[%clk 0:02:26]}  Bxf5 {[%clk 0:02:07]} 19. Be4 {[%clk 0:02:26]}  Bh3 {[%clk 0:01:58]} 20. Rfe1 {[%clk 0:02:19]}  Ne7 {[%clk 0:01:51]} 21. Nxe7 {[%clk 0:02:17]}  Qxe7 {[%clk 0:01:52]} 22. Bxa8 {[%clk 0:02:09]}  Rxa8 {[%clk 0:01:51]} 23. Rad1 {[%clk 0:02:01]}  Rf8 {[%clk 0:01:45]} 24. f4 {[%clk 0:01:54]}  Qa7+ {[%clk 0:01:31]} 25. Qe3 {[%clk 0:01:14]}  Qb7 {[%clk 0:01:24]} 26. Rd5 {[%clk 0:00:48]}  Bd8 {[%clk 0:01:16]} 27. Qf3 {[%clk 0:00:34]}  Bb6+ {[%clk 0:01:10]} 28. Kh1 {[%clk 0:00:31]}  Be6 {[%clk 0:00:38]} 29. Rd3 {[%clk 0:00:29]}  e4 {[%clk 0:00:27]} 30. Rxe4 {[%clk 0:00:25]}  Bf5 {[%clk 0:00:26]} 31. Re2 {[%clk 0:00:23]}  Qc8 {[%clk 0:00:09]} 32. Rdd2 {[%clk 0:00:22]}  Bd7 {[%clk 0:00:08]} 33. Ne3 {[%clk 0:00:21]}  Bxe3 {[%clk 0:00:04]} 34. Qxe3 {[%clk 0:00:21]}  Bc6+ {[%clk 0:00:05]} 35. Kg1 {[%clk 0:00:22]}  Ba8 {[%clk 0:00:05]} 36. Kf2 {[%clk 0:00:17]}  Qh3 {[%clk 0:00:04]} 37. Kg1 {[%clk 0:00:18]}  Qd7 {[%clk 0:00:03]} 38. Qe7 {[%clk 0:00:16]}  Qc8 {[%clk 0:00:04]} 39. Rxd6 {[%clk 0:00:16]}  Qc5+ {[%clk 0:00:04]} 40. Rf2 {[%clk 0:00:15]}  Rg8 {[%clk 0:00:03]} 41. Qe5 {[%clk 0:00:15]}  Qc8 {[%clk 0:00:03]} 42. f5 {[%clk 0:00:14]}  Qb7 {[%clk 0:00:03]} 43. Rd5 {[%clk 0:00:15]}  a4 {[%clk 0:00:04]} 44. f6 {[%clk 0:00:15]}  gxf6 {[%clk 0:00:03]} 45. Qxf6+ {[%clk 0:00:15]}  Rg7 {[%clk 0:00:02]} 46. Qd8+ {[%clk 0:00:15]}  Rg8 {[%clk 0:00:03]} 47. Rf8 {[%clk 0:00:16]}  Qa7+ {[%clk 0:00:02]} 48. Kf1 {[%clk 0:00:16]}  Qg7 {[%clk 0:00:02]} 49. Rxg8+ {[%clk 0:00:16]}  Qxg8 {[%clk 0:00:03]} 50. Qxg8+ {[%clk 0:00:16]}  Kxg8 {[%clk 0:00:04]} 51. Rd8+ {[%clk 0:00:16]} 1-0


[Site "https://www.chess.com"]

[Event "Titled Tuesday Blitz April 12 Early 2022"]
[White "Kavyev, Ruslan"]
[Black "Skliarov, Viktor"]
[WhiteFideId "34110981"]
[BlackFideId "14106736"]
[WhiteElo "2182"]
[BlackElo "2229"]
[Result "1-0"]
[Round "11"]
[TimeControl "180+1"]
[Date "2022.04.13"]
[WhiteClock "0:00:17"]
[BlackClock "0:00:02"]

1. d4 {[%clk 0:02:54]}  Nf6 {[%clk 0:02:59]} 2. c4 {[%clk 0:02:53]}  e6 {[%clk 0:02:59]} 3. g3 {[%clk 0:02:52]}  c5 {[%clk 0:02:59]} 4. Nf3 {[%clk 0:02:52]}  cxd4 {[%clk 0:02:54]} 5. Nxd4 {[%clk 0:02:52]}  Nc6 {[%clk 0:02:55]} 6. Bg2 {[%clk 0:02:48]}  Qb6 {[%clk 0:02:53]} 7. Nxc6 {[%clk 0:02:45]}  bxc6 {[%clk 0:02:53]} 8. O-O {[%clk 0:02:46]}  h5 {[%clk 0:02:46]} 9. Nc3 {[%clk 0:02:34]}  h4 {[%clk 0:02:44]} 10. Qd2 {[%clk 0:01:51]}  hxg3 {[%clk 0:02:22]} 11. hxg3 {[%clk 0:01:51]}  Qb8 {[%clk 0:02:15]} 12. b3 {[%clk 0:01:42]}  Bc5 {[%clk 0:02:12]} 13. e3 {[%clk 0:01:35]}  Qe5 {[%clk 0:02:01]} 14. Bb2 {[%clk 0:01:19]}  Qh5 {[%clk 0:01:58]} 15. Rfe1 {[%clk 0:01:18]}  Qh2+ {[%clk 0:01:28]} 16. Kf1 {[%clk 0:01:18]}  Rh5 {[%clk 0:01:26]} 17. Rad1 {[%clk 0:01:06]}  Rf5 {[%clk 0:01:20]} 18. Na4 {[%clk 0:01:00]}  Qxg3 {[%clk 0:00:32]} 19. Nxc5 {[%clk 0:00:56]}  Ng4 {[%clk 0:00:32]} 20. Ne4 {[%clk 0:00:53]}  Nh2+ {[%clk 0:00:30]} 21. Ke2 {[%clk 0:00:49]}  Qxg2 {[%clk 0:00:26]} 22. Nd6+ {[%clk 0:00:49]}  Kf8 {[%clk 0:00:18]} 23. Nxf5 {[%clk 0:00:48]}  Qf3+ {[%clk 0:00:14]} 24. Kd3 {[%clk 0:00:49]}  Qxf5+ {[%clk 0:00:14]} 25. e4 {[%clk 0:00:49]}  Qf3+ {[%clk 0:00:06]} 26. Kc2 {[%clk 0:00:49]}  Ng4 {[%clk 0:00:05]} 27. Kb1 {[%clk 0:00:26]}  a5 {[%clk 0:00:05]} 28. Qd6+ {[%clk 0:00:24]}  Kg8 {[%clk 0:00:05]} 29. Qe7 {[%clk 0:00:22]}  Ba6 {[%clk 0:00:05]} 30. Rxd7 {[%clk 0:00:21]}  Qxf2 {[%clk 0:00:05]} 31. Rh1 {[%clk 0:00:19]}  Nh2 {[%clk 0:00:04]} 32. Rd8+ {[%clk 0:00:18]}  Rxd8 {[%clk 0:00:03]} 33. Qxd8+ {[%clk 0:00:19]}  Kh7 {[%clk 0:00:04]} 34. Qd6 {[%clk 0:00:17]}  e5 {[%clk 0:00:01]} 35. Qxe5 {[%clk 0:00:16]}  f6 {[%clk 0:00:02]} 36. Qxh2+ {[%clk 0:00:16]}  Qxh2 {[%clk 0:00:02]} 37. Rxh2+ {[%clk 0:00:17]} 1-0


[Site "https://www.chess.com"]

[Event "Titled Tuesday Blitz April 12 Early 2022"]
[White "Khripachenko, Alexander"]
[Black "Shipov, Sergei"]
[WhiteFideId "54184975"]
[BlackFideId "4113624"]
[WhiteElo "2193"]
[BlackElo "2791"]
[Result "0-1"]
[Round "11"]
[TimeControl "180+1"]
[Date "2022.04.12"]
[WhiteClock "0:00:04"]
[BlackClock "0:00:33"]

1. e4 {[%clk 0:03:00]}  e6 {[%clk 0:03:00]} 2. d4 {[%clk 0:03:00]}  d5 {[%clk 0:03:00]} 3. Nd2 {[%clk 0:03:01]}  Be7 {[%clk 0:03:00]} 4. Bd3 {[%clk 0:03:00]}  c5 {[%clk 0:02:59]} 5. dxc5 {[%clk 0:03:00]}  Nf6 {[%clk 0:02:59]} 6. Qe2 {[%clk 0:03:00]}  a5 {[%clk 0:02:57]} 7. Ngf3 {[%clk 0:02:55]}  O-O {[%clk 0:02:57]} 8. O-O {[%clk 0:02:52]}  Na6 {[%clk 0:02:57]} 9. e5 {[%clk 0:02:53]}  Nd7 {[%clk 0:02:56]} 10. c4 {[%clk 0:02:53]}  Ndxc5 {[%clk 0:02:52]} 11. Bb1 {[%clk 0:02:53]}  d4 {[%clk 0:02:50]} 12. Rd1 {[%clk 0:02:51]}  d3 {[%clk 0:02:44]} 13. Qe3 {[%clk 0:02:50]}  Nb4 {[%clk 0:02:44]} 14. Ne4 {[%clk 0:02:39]}  Qc7 {[%clk 0:02:39]} 15. Nxc5 {[%clk 0:01:37]}  Bxc5 {[%clk 0:02:38]} 16. Qe4 {[%clk 0:01:37]}  Rd8 {[%clk 0:01:29]} 17. Ng5 {[%clk 0:01:14]}  g6 {[%clk 0:01:27]} 18. Qh4 {[%clk 0:01:10]}  h5 {[%clk 0:01:27]} 19. Ne4 {[%clk 0:00:56]}  Be7 {[%clk 0:01:18]} 20. Bg5 {[%clk 0:00:53]}  Bxg5 {[%clk 0:01:15]} 21. Qxg5 {[%clk 0:00:53]}  Nc6 {[%clk 0:01:02]} 22. Nf6+ {[%clk 0:00:43]}  Kf8 {[%clk 0:01:00]} 23. Qh6+ {[%clk 0:00:16]}  Ke7 {[%clk 0:01:00]} 24. Qg5 {[%clk 0:00:16]}  Qxe5 {[%clk 0:00:57]} 25. Nd5+ {[%clk 0:00:16]}  Kf8 {[%clk 0:00:52]} 26. Qxe5 {[%clk 0:00:12]}  Nxe5 {[%clk 0:00:51]} 27. Nc7 {[%clk 0:00:13]}  Rb8 {[%clk 0:00:50]} 28. b3 {[%clk 0:00:14]}  g5 {[%clk 0:00:48]} 29. f3 {[%clk 0:00:07]}  b6 {[%clk 0:00:47]} 30. Kf2 {[%clk 0:00:06]}  Bb7 {[%clk 0:00:47]} 31. Nb5 {[%clk 0:00:07]}  Rbc8 {[%clk 0:00:46]} 32. Rd2 {[%clk 0:00:07]}  f5 {[%clk 0:00:45]} 33. Nc3 {[%clk 0:00:07]}  f4 {[%clk 0:00:45]} 34. a3 {[%clk 0:00:07]}  Kg7 {[%clk 0:00:44]} 35. Ba2 {[%clk 0:00:07]}  Kf6 {[%clk 0:00:44]} 36. Rad1 {[%clk 0:00:08]}  Rd4 {[%clk 0:00:44]} 37. Bb1 {[%clk 0:00:08]}  Rcd8 {[%clk 0:00:42]} 38. Nb5 {[%clk 0:00:08]}  R4d7 {[%clk 0:00:41]} 39. Nc3 {[%clk 0:00:05]}  Bc6 {[%clk 0:00:41]} 40. a4 {[%clk 0:00:06]}  Rd4 {[%clk 0:00:40]} 41. Na2 {[%clk 0:00:06]}  g4 {[%clk 0:00:40]} 42. fxg4 {[%clk 0:00:04]}  hxg4 {[%clk 0:00:40]} 43. Nc1 {[%clk 0:00:04]}  Be4 {[%clk 0:00:39]} 44. Re1 {[%clk 0:00:03]}  Bf5 {[%clk 0:00:39]} 45. Na2 {[%clk 0:00:04]}  Nc6 {[%clk 0:00:38]} 46. Nc3 {[%clk 0:00:04]}  Nb4 {[%clk 0:00:38]} 47. Nb5 {[%clk 0:00:05]}  R4d7 {[%clk 0:00:38]} 48. g3 {[%clk 0:00:05]}  e5 {[%clk 0:00:38]} 49. Nc3 {[%clk 0:00:05]}  Rh7 {[%clk 0:00:37]} 50. Kg2 {[%clk 0:00:04]}  Rdh8 {[%clk 0:00:36]} 51. Rh1 {[%clk 0:00:04]}  fxg3 {[%clk 0:00:35]} 52. Kxg3 {[%clk 0:00:05]}  Rh3+ {[%clk 0:00:35]} 53. Kg2 {[%clk 0:00:05]}  g3 {[%clk 0:00:36]} 54. Kg1 {[%clk 0:00:04]}  e4 {[%clk 0:00:34]} 55. Nd1 {[%clk 0:00:02]}  gxh2+ {[%clk 0:00:33]} 56. Rhxh2 {[%clk 0:00:03]}  Rxh2 {[%clk 0:00:33]} 57. Rxh2 {[%clk 0:00:04]}  Rxh2 {[%clk 0:00:33]} 58. Kxh2 {[%clk 0:00:04]}  Ke5 {[%clk 0:00:34]} 59. Kg3 {[%clk 0:00:05]}  Be6 {[%clk 0:00:33]} 60. Kf2 {[%clk 0:00:05]}  Kd4 {[%clk 0:00:33]} 61. Ne3 {[%clk 0:00:04]}  Kc3 {[%clk 0:00:32]} 62. Ke1 {[%clk 0:00:04]}  Kxb3 {[%clk 0:00:33]} 0-1


[Site "https://www.chess.com"]

[Event "Titled Tuesday Blitz April 12 Early 2022"]
[White "Korchmar, Vasiliy"]
[Black "Brodowski, Piotr"]
[WhiteFideId "24131750"]
[BlackFideId "1124480"]
[WhiteElo "2370"]
[BlackElo "2422"]
[Result "1-0"]
[Round "11"]
[TimeControl "180+1"]
[Date "2022.04.12"]
[WhiteClock "0:00:15"]
[BlackClock "0:00:16"]

1. d4 {[%clk 0:03:00]}  c5 {[%clk 0:02:54]} 2. d5 {[%clk 0:03:01]}  d6 {[%clk 0:02:55]} 3. Nc3 {[%clk 0:03:01]}  Nf6 {[%clk 0:02:55]} 4. e4 {[%clk 0:03:02]}  g6 {[%clk 0:02:54]} 5. Bb5+ {[%clk 0:03:02]}  Bd7 {[%clk 0:02:54]} 6. a4 {[%clk 0:03:03]}  Bxb5 {[%clk 0:02:54]} 7. axb5 {[%clk 0:03:03]}  Bg7 {[%clk 0:02:55]} 8. Nf3 {[%clk 0:03:04]}  O-O {[%clk 0:02:55]} 9. O-O {[%clk 0:03:05]}  Nbd7 {[%clk 0:02:56]} 10. Qe2 {[%clk 0:03:04]}  Nb6 {[%clk 0:02:56]} 11. Rd1 {[%clk 0:03:02]}  Ne8 {[%clk 0:02:56]} 12. e5 {[%clk 0:02:57]}  Nc7 {[%clk 0:02:54]} 13. Bg5 {[%clk 0:02:44]}  Qd7 {[%clk 0:02:23]} 14. Ne4 {[%clk 0:02:24]}  f6 {[%clk 0:02:17]} 15. exf6 {[%clk 0:02:12]}  exf6 {[%clk 0:02:17]} 16. Bf4 {[%clk 0:02:13]}  Rfe8 {[%clk 0:01:59]} 17. Qd3 {[%clk 0:02:13]}  c4 {[%clk 0:01:53]} 18. Qd4 {[%clk 0:02:09]}  Nxb5 {[%clk 0:01:51]} 19. Nxf6+ {[%clk 0:02:01]}  Bxf6 {[%clk 0:01:42]} 20. Qxf6 {[%clk 0:02:02]}  Rf8 {[%clk 0:01:43]} 21. Qh4 {[%clk 0:01:56]}  Qf5 {[%clk 0:01:38]} 22. Bh6 {[%clk 0:01:53]}  Rfe8 {[%clk 0:01:34]} 23. Be3 {[%clk 0:01:46]}  Re4 {[%clk 0:00:56]} 24. Qh6 {[%clk 0:01:27]}  Nxd5 {[%clk 0:00:51]} 25. Ng5 {[%clk 0:01:26]}  Re7 {[%clk 0:00:49]} 26. h3 {[%clk 0:01:13]}  Nxe3 {[%clk 0:00:46]} 27. fxe3 {[%clk 0:01:14]}  a6 {[%clk 0:00:34]} 28. Rf1 {[%clk 0:01:14]}  Qe5 {[%clk 0:00:35]} 29. Rf3 {[%clk 0:01:14]}  Qg7 {[%clk 0:00:31]} 30. Qh4 {[%clk 0:01:15]}  Qxb2 {[%clk 0:00:31]} 31. Raf1 {[%clk 0:01:14]}  Qe5 {[%clk 0:00:28]} 32. Nf7 {[%clk 0:00:42]}  g5 {[%clk 0:00:20]} 33. Qh5 {[%clk 0:00:33]}  Qg7 {[%clk 0:00:20]} 34. Nh6+ {[%clk 0:00:31]}  Kh8 {[%clk 0:00:20]} 35. Nf5 {[%clk 0:00:18]}  Qe5 {[%clk 0:00:16]} 36. Nxe7 {[%clk 0:00:18]}  Qxe7 {[%clk 0:00:17]} 37. Rf7 {[%clk 0:00:17]}  Qxe3+ {[%clk 0:00:17]} 38. Kh1 {[%clk 0:00:17]}  Qe4 {[%clk 0:00:17]} 39. Qh6 {[%clk 0:00:18]}  Rg8 {[%clk 0:00:16]} 40. Qf6+ {[%clk 0:00:15]} 1-0


[Site "https://www.chess.com"]

[Event "Titled Tuesday Blitz April 12 Early 2022"]
[White "Le, Tuan Minh"]
[Black "Nakamura, Hikaru"]
[WhiteFideId "12401153"]
[BlackFideId "2016192"]
[WhiteElo "2450"]
[BlackElo "2850"]
[Result "1/2-1/2"]
[Round "11"]
[TimeControl "180+1"]
[Date "2022.04.12"]
[WhiteClock "0:00:05"]
[BlackClock "0:00:20"]

1. d4 {[%clk 0:03:00]}  g6 {[%clk 0:02:57]} 2. e4 {[%clk 0:02:57]}  Bg7 {[%clk 0:02:57]} 3. Nf3 {[%clk 0:02:57]}  d6 {[%clk 0:02:55]} 4. Bc4 {[%clk 0:02:56]}  Nf6 {[%clk 0:02:49]} 5. Nc3 {[%clk 0:02:53]}  O-O {[%clk 0:02:47]} 6. O-O {[%clk 0:02:53]}  Bg4 {[%clk 0:02:47]} 7. h3 {[%clk 0:02:52]}  Bxf3 {[%clk 0:02:47]} 8. Qxf3 {[%clk 0:02:53]}  Nc6 {[%clk 0:02:47]} 9. Ne2 {[%clk 0:02:21]}  e5 {[%clk 0:02:45]} 10. c3 {[%clk 0:02:08]}  Nd7 {[%clk 0:02:39]} 11. Rd1 {[%clk 0:02:00]}  Qe7 {[%clk 0:02:12]} 12. Bd5 {[%clk 0:01:28]}  Rae8 {[%clk 0:02:10]} 13. Be3 {[%clk 0:01:28]}  exd4 {[%clk 0:02:04]} 14. cxd4 {[%clk 0:01:20]}  Nd8 {[%clk 0:01:45]} 15. Nc3 {[%clk 0:01:14]}  c6 {[%clk 0:01:41]} 16. Bb3 {[%clk 0:01:14]}  Ne6 {[%clk 0:01:42]} 17. Rd2 {[%clk 0:01:06]}  Ng5 {[%clk 0:01:40]} 18. Qg4 {[%clk 0:01:06]}  Ne6 {[%clk 0:01:38]} 19. Rad1 {[%clk 0:01:05]}  Nc7 {[%clk 0:01:32]} 20. Qg3 {[%clk 0:01:01]}  Rd8 {[%clk 0:01:26]} 21. Bg5 {[%clk 0:00:59]}  Bf6 {[%clk 0:01:26]} 22. Bf4 {[%clk 0:00:56]}  Ne8 {[%clk 0:01:26]} 23. e5 {[%clk 0:00:53]}  Bh4 {[%clk 0:01:16]} 24. exd6 {[%clk 0:00:44]}  Qf6 {[%clk 0:01:17]} 25. Ne4 {[%clk 0:00:42]}  Bxg3 {[%clk 0:01:16]} 26. Nxf6+ {[%clk 0:00:42]}  Ndxf6 {[%clk 0:01:17]} 27. fxg3 {[%clk 0:00:27]}  Nxd6 {[%clk 0:01:17]} 28. d5 {[%clk 0:00:28]}  c5 {[%clk 0:01:12]} 29. Rc2 {[%clk 0:00:21]}  b6 {[%clk 0:01:09]} 30. Ba4 {[%clk 0:00:22]}  Nf5 {[%clk 0:00:41]} 31. Rcd2 {[%clk 0:00:17]}  Nd4 {[%clk 0:00:39]} 32. Be5 {[%clk 0:00:15]}  Ne4 {[%clk 0:00:37]} 33. Rd3 {[%clk 0:00:14]}  Rxd5 {[%clk 0:00:33]} 34. Bxd4 {[%clk 0:00:12]}  Rfd8 {[%clk 0:00:34]} 35. Bc6 {[%clk 0:00:12]}  cxd4 {[%clk 0:00:24]} 36. Bxd5 {[%clk 0:00:12]}  Rxd5 {[%clk 0:00:25]} 37. Rxd4 {[%clk 0:00:13]}  Re5 {[%clk 0:00:26]} 38. Re1 {[%clk 0:00:11]}  f5 {[%clk 0:00:26]} 39. g4 {[%clk 0:00:12]}  Kg7 {[%clk 0:00:23]} 40. gxf5 {[%clk 0:00:13]}  gxf5 {[%clk 0:00:24]} 41. Rd7+ {[%clk 0:00:11]}  Kg6 {[%clk 0:00:24]} 42. Rxa7 {[%clk 0:00:11]}  Rb5 {[%clk 0:00:23]} 43. b3 {[%clk 0:00:11]}  h5 {[%clk 0:00:24]} 44. Rb7 {[%clk 0:00:11]}  h4 {[%clk 0:00:23]} 45. Rc1 {[%clk 0:00:10]}  Kg5 {[%clk 0:00:23]} 46. Rg7+ {[%clk 0:00:10]}  Kf4 {[%clk 0:00:23]} 47. Rf1+ {[%clk 0:00:10]}  Ke3 {[%clk 0:00:22]} 48. Rf7 {[%clk 0:00:08]}  Ng3 {[%clk 0:00:22]} 49. Re7+ {[%clk 0:00:08]}  Kd3 {[%clk 0:00:19]} 50. Rf3+ {[%clk 0:00:06]}  Kd2 {[%clk 0:00:20]} 51. Rf2+ {[%clk 0:00:04]}  Kd3 {[%clk 0:00:20]} 52. Rf3+ {[%clk 0:00:04]}  Kd2 {[%clk 0:00:20]} 53. Rf2+ {[%clk 0:00:05]}  Kd3 {[%clk 0:00:20]} 54. Rf3+ {[%clk 0:00:05]} 1/2-1/2


[Site "https://www.chess.com"]